bitfinex/quotes_SOLUSD_20241225
["timestamp","ask_amount","ask_price","bid_price","bid_amount"]
[1735106516502,9.65186266,199.64,199.6,7.9841]
[1735106517592,9.65186266,199.67,199.6,7.9841]
[1735106519329,7.5117,199.69,199.6,7.9841]
[1735106519512,9.65186266,199.68,199.6,7.9841]
[1735106520436,10.15186266,199.68,199.6,7.9841]
[1735106520829,9.65186266,199.68,199.6,7.9841]
[1735106521322,9.65186266,199.66,199.6,7.9841]
[1735106521506,9.65186266,199.64,199.6,7.9841]
[1735106521914,9.65186266,199.61,199.55,7.6661]
[1735106526130,9.65186266,199.58,199.55,7.6661]
[1735106526331,9.65186266,199.57,199.55,7.6661]
[1735106527023,9.65186266,199.56,199.5,8.75367902]
[1735106527323,9.65186266,199.55,199.5,8.75367902]
[1735106528110,9.65186266,199.54,199.5,8.75367902]
[1735106529010,9.65186266,199.53,199.5,8.75367902]
[1735106529201,9.65186266,199.57,199.5,140.40554168]
[1735106529401,9.65186266,199.58,199.5,140.40554168]
[1735106529606,9.65186266,199.58,199.51,9.65186266]
[1735106529802,9.65186266,199.61,199.53,9.65186266]
[1735106530026,9.65186266,199.62,199.55,9.65186266]
[1735106530217,15.08182418,199.62,199.55,15.08182418]
[1735106531026,0.5,199.68,199.59,15.08182418]
[1735106531229,15.08182418,199.66,199.59,15.08182418]
[1735106531431,15.08182418,199.67,199.59,15.83309027]
[1735106532633,0.5,199.7,199.61,15.08182418]
[1735106532840,15.08182418,199.68,199.61,15.08182418]
[1735106534828,15.08182418,199.68,199.59,15.83309027]
[1735106536855,15.08182418,199.68,199.59,137.83309027]
[1735106537153,15.08182418,199.68,199.59,137.08182418]
[1735106538547,15.08182418,199.68,199.6,0.75124577]
[1735106539819,15.08182418,199.68,199.6,122.75124577]
[1735106540020,15.08182418,199.68,199.6,122.0]
[1735106541453,15.08182418,199.66,199.6,122.0]
[1735106542845,15.08182418,199.66,199.57,15.08182418]
[1735106543042,15.08182418,199.66,199.58,0.75127727]
[1735106544846,13.99739338,199.66,199.58,15.83310145]
[1735106545851,13.99739338,199.66,199.58,137.83310145]
[1735106546035,13.99739338,199.66,199.58,137.08182418]
[1735106546647,15.08182418,199.62,199.56,129.8872]
[1735106547425,15.08182418,199.62,199.56,7.8872]
[1735106547633,15.08182418,199.6,199.56,7.8872]
[1735106549027,15.08182418,199.61,199.56,7.8872]
[1735106549457,15.08182418,199.62,199.56,7.8872]
[1735106549755,15.08182418,199.63,199.56,22.96902418]
[1735106549929,15.08182418,199.64,199.56,22.96902418]
[1735106551351,15.08182418,199.62,199.56,7.8872]
[1735106552153,9.65430618,199.61,199.56,7.8872]
[1735106552350,9.65430618,199.59,199.56,7.8872]
[1735106552561,9.65430618,199.57,199.51,8.0106]
[1735106552774,9.65430618,199.56,199.51,8.0106]
[1735106553105,9.65430618,199.55,199.51,8.0106]
[1735106553359,9.65430618,199.56,199.51,8.0106]
[1735106554133,15.08891899,199.58,199.51,8.0106]
[1735106554357,15.08891899,199.58,199.51,8.76216126]
[1735106555680,15.08891899,199.59,199.51,23.85108025]
[1735106556146,8.0139,199.63,199.53,15.08891899]
[1735106556464,15.08891899,199.61,199.53,15.84039736]
[1735106557480,15.08891899,199.61,199.53,15.08891899]
[1735106557863,15.08891899,199.61,199.53,137.08891899]
[1735106559881,15.08891899,199.59,199.53,137.08891899]
[1735106561678,15.08891899,199.57,199.53,122.0]
[1735106561869,15.08891899,199.56,199.51,8.0106]
[1735106563277,0.5,199.61,199.51,8.0106]
[1735106563278,15.08891899,199.55,199.51,8.0106]
[1735106563453,15.08891899,199.54,199.46,144.65861899]
[1735106563659,15.08891899,199.53,199.46,129.5697]
[1735106564087,15.08891899,199.52,199.46,129.5697]
[1735106564688,15.08891899,199.52,199.46,7.5697]
[1735106566367,15.08891899,199.51,199.46,7.5697]
[1735106569269,15.08891899,199.52,199.46,7.5697]
[1735106569680,15.08891899,199.53,199.46,7.5697]
[1735106569901,15.08891899,199.54,199.47,15.08891899]
[1735106571166,15.08891899,199.54,199.47,15.84065992]
[1735106576199,9.66050404,199.54,199.47,10.41224497]
[1735106576890,7.5157,199.58,199.47,10.41224497]
[1735106577096,9.66050404,199.54,199.47,10.41224497]
[1735106579672,9.66050404,199.55,199.47,10.41224497]
[1735106579876,9.66050404,199.56,199.48,9.66050404]
[1735106580075,9.66050404,199.56,199.49,9.66050404]
[1735106583175,8.0145,199.62,199.5,8.58388278]
[1735106583387,9.66050404,199.61,199.53,9.66050404]
[1735106583581,7.5132,199.65,199.56,7.8322]
[1735106583799,9.66050404,199.63,199.56,8.5836002]
[1735106585581,9.66050404,199.61,199.56,7.8322]
[1735106588096,9.66050404,199.59,199.56,7.8322]
[1735106588808,9.66050404,199.61,199.56,7.8322]
[1735106597813,9.66050404,199.57,199.51,7.7272]
[1735106597991,9.66050404,199.55,199.51,7.7272]
[1735106606421,9.66050404,199.55,199.47,131.66050404]
[1735106606422,9.66050404,199.52,199.46,8.0964]
[1735106606715,9.66050404,199.5,199.46,8.0964]
[1735106608030,0.5,199.56,199.46,8.0964]
[1735106608324,0.5,199.56,199.47,9.66050404]
[1735106608511,9.66050404,199.55,199.48,10.41223711]
[1735106609126,9.66050404,199.56,199.48,132.41223711]
[1735106609305,9.66050404,199.56,199.48,131.66050404]
[1735106609511,9.66050404,199.56,199.49,0.75164325]
[1735106612031,9.66050404,199.56,199.48,122.0]
[1735106612211,9.66050404,199.55,199.48,122.0]
[1735106616320,9.66050404,199.53,199.48,122.0]
[1735106617349,9.66050404,199.54,199.48,122.0]
[1735106617943,9.66050404,199.54,199.46,17.75690404]
[1735106619248,20.0,199.58,199.47,132.41224513]
[1735106619452,9.66050404,199.56,199.47,131.66050404]
[1735106620728,9.66050404,199.56,199.48,0.75167635]
[1735106621346,9.66050404,199.56,199.49,9.66050404]
[1735106623955,9.66050404,199.56,199.49,131.66050404]
[1735106624152,0.5,199.6,199.49,131.66050404]
[1735106624329,9.66050404,199.61,199.53,131.66050404]
[1735106624653,9.66050404,199.63,199.55,131.66050404]
[1735106624832,9.66050404,199.64,199.57,7.7598]
[1735106625239,9.66050404,199.65,199.57,139.42030404]
[1735106625446,9.66050404,199.67,199.59,9.66050404]
[1735106625655,9.66050404,199.68,199.6,132.41176606]
[1735106625851,9.66050404,199.68,199.6,131.66050404]
[1735106626958,9.66050404,199.67,199.6,131.66050404]
[1735106627135,9.66050404,199.65,199.58,122.0]
[1735106627534,9.66050404,199.65,199.59,0.75134192]
[1735106627734,9.66050404,199.66,199.59,0.75134192]
[1735106628655,9.66050404,199.65,199.59,122.75134192]
[1735106628830,9.66050404,199.65,199.59,122.0]
[1735106630844,7.5097,199.74,199.6,122.75126752]
[1735106631059,9.66050404,199.68,199.6,9.66050404]
[1735106631352,9.66050404,199.68,199.6,10.41170291]
[1735106634758,9.66050404,199.66,199.6,122.5]
[1735106636761,9.66050404,199.67,199.61,130.2598]
[1735106641553,9.66050404,199.65,199.61,130.2598]
[1735106641753,7.5116,199.7,199.61,7.7598]
[1735106641754,9.66050404,199.63,199.61,7.7598]
[1735106647365,0.5,199.69,199.61,7.7598]
[1735106647777,9.66050404,199.65,199.61,7.7598]
[1735106653587,9.66050404,199.63,199.61,7.7598]
[1735106660706,7.5122,199.68,199.61,7.7598]
[1735106660881,9.66050404,199.65,199.61,7.7598]
[1735106666197,9.66050404,199.63,199.56,8.0866]
[1735106666402,9.66050404,199.6,199.56,8.0866]
[1735106674284,9.66050404,199.6,199.53,130.4217]
[1735106674688,9.66050404,199.57,199.53,130.4217]
[1735106675084,9.66050404,199.57,199.53,7.9217]
[1735106675699,9.66050404,199.55,199.53,7.9217]
[1735106675902,9.66050404,199.54,199.53,7.9217]
[1735106676610,9.66050404,199.54,199.53,1.579]
[1735106676819,9.66050404,199.55,199.49,8.1659]
[1735106677191,9.66050404,199.56,199.49,8.1659]
[1735106677695,9.66050404,199.58,199.5,132.16050404]
[1735106678403,9.66050404,199.57,199.5,132.16050404]
[1735106680326,9.66050404,199.55,199.49,8.1659]
[1735106685901,9.66050404,199.56,199.49,17.82640404]
[1735106698837,2.47001951,199.62,199.51,9.66050404]
[1735106699024,9.66050404,199.58,199.51,9.66050404]
[1735106700819,9.66050404,199.58,199.49,8.91762051]
[1735106701011,9.66050404,199.54,199.49,8.1659]
[1735106702636,9.66050404,199.55,199.49,8.1659]
[1735106703936,9.66050404,199.54,199.49,8.1659]
[1735106704909,9.66050404,199.52,199.49,8.1659]
[1735106708040,9.66050404,199.53,199.49,8.1659]
[1735106710457,9.66050404,199.53,199.45,132.16050404]
[1735106710458,9.66050404,199.5,199.44,124.1196]
[1735106711440,9.66050404,199.51,199.44,124.1196]
[1735106712048,9.66050404,199.52,199.44,133.78010404]
[1735106713042,9.66050404,199.52,199.45,9.66050404]
[1735106713247,9.66050404,199.52,199.45,10.41238006]
[1735106714649,9.66050404,199.55,199.48,6.1823]
[1735106717647,0.5,199.56,199.48,15.84280404]
[1735106717856,9.66050404,199.57,199.51,1.6196]
[1735106718039,9.66050404,199.58,199.51,1.6196]
[1735106718236,8.0151,199.6,199.51,11.28010404]
[1735106718446,9.66050404,199.59,199.51,12.03170074]
[1735106718955,9.66050404,199.6,199.52,9.66050404]
[1735106723159,9.66050404,199.6,199.52,132.16050404]
[1735106723355,0.5,199.62,199.53,9.66050404]
[1735106723662,9.66050404,199.61,199.54,9.66050404]
[1735106725162,9.66050404,199.62,199.54,9.66050404]
[1735106726178,9.66050404,199.61,199.54,9.66050404]
[1735106726980,9.66050404,199.6,199.53,138.34280404]
[1735106727475,9.66050404,199.57,199.53,6.1823]
[1735106727654,9.66050404,199.55,199.53,6.1823]
[1735106731481,9.66050404,199.56,199.53,6.1823]
[1735106738591,9.66050404,199.58,199.53,6.1823]
[1735106739096,7.5153,199.6,199.53,6.1823]
[1735106739386,9.66050404,199.62,199.55,9.66050404]
[1735106739679,9.66050404,199.64,199.57,133.66990404]
[1735106739884,9.66050404,199.65,199.58,10.41184859]
[1735106740781,9.66050404,199.64,199.57,133.66990404]
[1735106740964,9.66050404,199.63,199.57,124.0094]
[1735106742767,9.66050404,199.6,199.57,124.0094]
[1735106742969,9.66050404,199.61,199.57,124.0094]
[1735106743170,7.5138,199.64,199.57,124.0094]
[1735106743171,9.66050404,199.62,199.57,124.0094]
[1735106743477,9.66050404,199.63,199.57,124.0094]
[1735106743991,9.66050404,199.64,199.57,124.0094]
[1735106744197,9.66050404,199.64,199.57,1.5094]
[1735106744371,23.32156838,199.68,199.6,9.66050404]
[1735106744572,23.32156838,199.68,199.61,10.41173195]
[1735106745071,9.66050404,199.66,199.59,0.75118248]
[1735106745270,9.66050404,199.63,199.58,6.6129]
[1735106745474,9.66050404,199.62,199.58,6.6129]
[1735106746501,8.0123,199.67,199.58,16.27340404]
[1735106746787,9.66050404,199.65,199.58,16.27340404]
[1735106747005,23.32156838,199.68,199.64,15.88230404]
[1735106747183,9.66050404,199.74,199.65,123.25102111]
[1735106747373,9.66050404,199.74,199.66,0.75100254]
[1735106748186,9.66050404,199.74,199.66,123.25100254]
[1735106748381,9.66050404,199.74,199.66,122.5]
[1735106752201,9.66050404,199.74,199.66,132.16050404]
[1735106753594,9.66050404,199.72,199.66,122.5]
[1735106759584,9.66050404,199.71,199.64,6.2218]
[1735106759899,9.66050404,199.7,199.64,6.2218]
[1735106761511,9.66050404,199.7,199.64,128.7218]
[1735106761719,9.66050404,199.68,199.64,128.7218]
[1735106761899,9.66050404,199.67,199.64,6.2218]
[1735106762599,9.66050404,199.68,199.64,6.2218]
[1735106765115,7.01776716,199.68,199.64,6.2218]
[1735106768316,0.5,199.75,199.64,128.7218]
[1735106768498,9.66050404,199.72,199.65,0.75110891]
[1735106768693,9.66050404,199.72,199.65,10.41161295]
[1735106769317,0.5,199.77,199.65,123.25110891]
[1735106769493,9.66050404,199.72,199.65,122.5]
[1735106771617,9.66050404,199.72,199.65,132.16050404]
[1735106774722,7.5091,199.76,199.67,1.6566]
[1735106774901,7.5091,199.76,199.67,11.31710404]
[1735106775100,9.66050404,199.74,199.67,12.0680722]
[1735106777205,9.66050404,199.74,199.68,6.3957]
[1735106780315,9.66050404,199.74,199.68,128.8957]
[1735106780900,9.66050404,199.74,199.69,0.75092292]
[1735106781096,7.5068,199.82,199.7,1.6566]
[1735106781297,9.66050404,199.79,199.72,6.3957]
[1735106781510,9.66050404,199.81,199.74,124.1566]
[1735106782728,7.5056,199.85,199.75,123.25068866]
[1735106782917,9.66050404,199.82,199.76,6.3957]
[1735106783114,9.66050404,199.82,199.77,0.75059154]
[1735106783727,0.5,199.87,199.77,123.25059154]
[1735106783933,9.66050404,199.83,199.77,122.5]
[1735106784131,29.44189309,199.88,199.77,122.5]
[1735106784349,9.66050404,199.88,199.81,138.55620404]
[1735106785031,0.5,199.93,199.83,1.6312]
[1735106785223,0.5,199.98,199.85,9.66050404]
[1735106785535,9.66050404,199.92,199.85,132.91080199]
[1735106785735,9.66050404,199.92,199.85,122.5]
[1735106787117,8.0011,199.98,199.85,132.16050404]
[1735106787311,9.66050404,199.91,199.86,122.5]
[1735106787511,0.5,199.9,199.83,124.1312]
[1735106787711,9.66050404,199.86,199.83,124.1312]
[1735106787929,9.66050404,199.84,199.83,1.6312]
[1735106788137,9.66050404,199.85,199.83,1.6312]
[1735106789333,9.66050404,199.86,199.83,1.6312]
[1735106789532,9.66050404,199.87,199.83,1.6312]
[1735106789745,9.66050404,199.88,199.83,124.1312]
[1735106791637,9.66050404,199.87,199.83,124.1312]
[1735106791843,9.66050404,199.88,199.83,124.1312]
[1735106792139,9.66050404,199.89,199.83,124.1312]
[1735106792441,9.66050404,199.87,199.83,1.6312]
[1735106792638,9.66050404,199.88,199.83,124.1312]
[1735106795749,9.66050404,199.87,199.83,124.1312]
[1735106796720,9.66050404,199.86,199.83,1.6312]
[1735106797043,9.66050404,199.85,199.83,1.6312]
[1735106798154,9.66050404,199.84,199.83,1.6312]
[1735106799238,9.66050404,199.85,199.83,1.6312]
[1735106800959,9.66050404,199.84,199.83,1.6312]
[1735106802659,9.66050404,199.84,199.81,6.3957]
[1735106802862,38.64201616,199.92,199.78,124.0275]
[1735106802863,9.66050404,199.82,199.78,124.0275]
[1735106803071,9.66050404,199.8,199.78,124.0275]
[1735106803445,9.66050404,199.81,199.78,124.0275]
[1735106804869,9.66050404,199.82,199.78,1.5275]
[1735106805060,9.66050404,199.83,199.78,1.5275]
[1735106810271,9.66050404,199.83,199.78,124.0275]
[1735106816754,0.5,199.86,199.78,124.0275]
[1735106817189,9.66050404,199.88,199.81,6.1173]
[1735106817475,9.66050404,199.91,199.82,11.28400404]
[1735106817671,9.66050404,199.91,199.84,29.66050404]
[1735106819070,8.0019,199.95,199.84,152.16050404]
[1735106819282,9.66050404,199.92,199.84,152.16050404]
[1735106819879,8.0008,199.98,199.85,132.91082016]
[1735106820072,9.66050404,199.93,199.86,6.1173]
[1735106820571,9.66050404,199.93,199.86,6.86754551]
[1735106820782,9.66050404,199.91,199.86,128.6173]
[1735106820953,9.66050404,199.92,199.86,128.6173]
[1735106821149,9.66050404,199.92,199.87,0.75029512]
[1735106821354,9.66050404,199.93,199.87,123.25029512]
[1735106821657,9.66050404,199.93,199.87,122.5]
[1735106821861,9.66050404,199.92,199.88,124.1235]
[1735106825496,9.66050404,199.91,199.88,1.6235]
[1735106825706,9.66050404,199.89,199.88,1.6235]
[1735106826000,9.66050404,199.9,199.88,1.6235]
[1735106827019,9.66050404,199.95,199.88,134.53422938]
[1735106827177,9.95002625,200.03,199.9,9.66050404]
[1735106827375,9.66050404,199.97,199.92,128.6173]
[1735106831299,9.66050404,199.97,199.92,6.1173]
[1735106831703,0.5,200.0,199.92,6.1173]
[1735106831876,9.66050404,199.98,199.92,129.36742901]
[1735106832076,9.66050404,199.98,199.92,128.6173]
[1735106832298,9.66050404,199.98,199.93,0.7500124]
[1735106832597,9.66050404,199.98,199.94,1.6235]
[1735106833096,0.5,200.05,199.94,124.1235]
[1735106833297,7.9966,200.09,199.95,0.74996618]
[1735106833493,9.66050404,200.01,199.95,0.74996618]
[1735106833672,9.66050404,200.01,199.94,124.1235]
[1735106833879,9.66050404,199.99,199.94,124.1235]
[1735106834297,9.66050404,199.95,199.94,1.6235]
[1735106834491,9.66050404,199.95,199.88,1.6235]
[1735106834803,9.66050404,199.9,199.88,1.6235]
[1735106835105,9.66050404,199.91,199.88,1.6235]
[1735106836980,0.5,199.96,199.88,124.1235]
[1735106837307,9.66050404,199.91,199.88,124.1235]
[1735106838004,0.5,199.96,199.88,1.6235]
[1735106838304,9.66050404,199.91,199.88,1.6235]
[1735106842913,9.66050404,199.92,199.88,1.6235]
[1735106843820,0.5,199.96,199.88,1.6235]
[1735106843821,9.66050404,199.91,199.88,1.6235]
[1735106845120,9.66050404,199.92,199.88,1.6235]
[1735106846719,9.66050404,199.95,199.88,11.28400404]
[1735106846891,9.66050404,199.96,199.89,10.41068513]
[1735106847092,9.66050404,199.99,199.92,9.66050404]
[1735106847301,9.66050404,199.97,199.92,122.5]
[1735106847828,9.66050404,199.96,199.91,129.0104]
[1735106848119,9.66050404,199.99,199.92,12.04190819]
[1735106848314,9.66050404,200.0,199.92,134.54190819]
[1735106848511,9.66050404,200.01,199.94,9.66050404]
[1735106848713,9.66050404,200.01,199.94,10.41045218]
[1735106849824,9.66050404,200.0,199.93,9.66050404]
[1735106850124,0.5,200.05,199.93,0.75001605]
[1735106850125,7.4988,200.03,199.93,0.75001605]
[1735106850421,9.66050404,200.0,199.93,0.75001605]
[1735106852124,9.66050404,199.98,199.92,133.79180404]
[1735106852827,9.66050404,199.97,199.92,124.1313]
[1735106853721,9.66050404,199.98,199.92,124.1313]
[1735106855425,9.66050404,199.96,199.92,124.1313]
[1735106856102,9.66050404,199.97,199.92,124.1313]
[1735106857133,9.66050404,199.98,199.92,124.1313]
[1735106857702,9.66050404,199.98,199.93,0.75002137]
[1735106858726,0.5,200.03,199.93,0.75002137]
[1735106858907,9.66050404,200.01,199.93,10.41052541]
[1735106859108,9.66050404,199.99,199.93,0.75002137]
[1735106860132,9.66050404,199.98,199.93,0.75002137]
[1735106860309,9.66050404,199.97,199.92,124.1313]
[1735106861133,9.66050404,199.98,199.92,124.1313]
[1735106861518,9.66050404,199.99,199.92,124.1313]
[1735106861704,9.66050404,199.99,199.93,0.75002084]
[1735106864436,9.66050404,199.99,199.93,123.25002084]
[1735106864634,9.66050404,199.99,199.93,122.5]
[1735106867957,9.66050404,199.99,199.94,0.75003574]
[1735106868139,9.66050404,199.99,199.93,122.5]
[1735106870161,9.66050404,199.99,199.94,0.75000862]
[1735106873560,9.66050404,199.99,199.94,123.25000862]
[1735106873775,9.66050404,199.99,199.94,122.5]
[1735106876362,9.66050404,199.96,199.92,1.6313]
[1735106876565,9.66050404,199.93,199.92,1.6313]
[1735106876863,9.66050404,199.94,199.92,1.6313]
[1735106878561,9.66050404,199.95,199.92,1.6313]
[1735106884069,0.5,200.03,199.92,124.88149757]
[1735106884255,9.66050404,200.01,199.93,132.16050404]
[1735106884567,7.9986,200.04,199.94,123.24995933]
[1735106884568,7.4986,200.04,199.94,123.24995933]
[1735106884865,9.66050404,200.02,199.95,0.74992448]
[1735106885068,0.5,200.08,199.96,6.5496]
[1735106885242,9.66050404,200.03,199.97,0.74985282]
[1735106886178,7.9974,200.07,199.98,124.0757]
[1735106886465,9.66050404,200.03,199.98,124.0757]
[1735106888343,9.66050404,200.01,199.98,1.5757]
[1735106892382,7.4974,200.07,199.98,1.5757]
[1735106892552,9.66050404,200.03,199.98,1.5757]
[1735106894071,9.66050404,200.02,199.98,1.5757]
[1735106894566,20.0,200.07,199.98,1.5757]
[1735106894746,9.66050404,200.02,199.98,1.5757]
[1735106895848,9.66050404,200.01,199.98,1.5757]
[1735106899150,9.66050404,200.0,199.98,1.5757]
[1735106900169,7.9978,200.06,199.98,1.5757]
[1735106900474,9.66050404,200.01,199.98,1.5757]
[1735106901173,9.66050404,199.99,199.96,6.5496]
[1735106901378,0.5,200.03,199.96,6.5496]
[1735106901670,9.66050404,199.97,199.96,6.5496]
[1735106904674,9.66050404,199.97,199.93,1.5307]
[1735106904870,9.66050404,199.96,199.93,1.5307]
[1735106905772,9.66050404,199.94,199.91,6.1796]
[1735106907357,9.66050404,199.93,199.91,6.1796]
[1735106911186,9.66050404,199.93,199.88,1.512]
[1735106912582,9.66050404,199.94,199.88,1.512]
[1735106915969,9.66050404,199.93,199.88,1.512]
[1735106917290,7.5,200.0,199.88,124.76227419]
[1735106917490,0.5,199.99,199.88,133.67250404]
[1735106917696,9.66050404,199.95,199.88,133.67250404]
[1735106918077,9.66050404,199.95,199.88,124.012]
[1735106925402,9.66050404,199.95,199.88,133.67250404]
[1735106926411,7.5,200.0,199.92,132.16050404]
[1735106926578,9.66050404,200.0,199.93,10.41052749]
[1735106926778,9.66050404,200.0,199.93,0.75002345]
[1735106928392,9.66050404,200.0,199.94,23.776884]
[1735106928579,9.66050404,199.99,199.94,23.776884]
[1735106933606,9.66050404,199.98,199.94,23.776884]
[1735106934594,9.66050404,199.96,199.93,23.776884]
[1735106935411,9.66050404,199.96,199.9,0.75011965]
[1735106935804,9.66050404,199.95,199.9,0.75011965]
[1735106936491,9.66050404,199.96,199.9,0.75011965]
[1735106936696,9.66050404,199.96,199.91,23.776884]
[1735106937903,9.66050404,199.95,199.9,23.776884]
[1735106940112,9.66050404,199.94,199.9,23.776884]
[1735106940416,9.66050404,199.93,199.9,23.776884]
[1735106940596,9.66050404,199.94,199.9,23.776884]
[1735106947937,9.66050404,199.94,199.89,6.0857]
[1735106952825,9.66050404,199.93,199.89,6.0857]
[1735106953961,9.66050404,199.9,199.89,6.0857]
[1735106954249,9.66050404,199.9,199.88,1.512]
[1735106954542,9.66050404,199.89,199.88,1.512]
[1735106959934,9.66050404,199.9,199.88,1.512]
[1735106968052,7.5008,199.98,199.88,1.512]
[1735106968225,9.66050404,199.93,199.88,1.512]
[1735106969449,7.5008,199.98,199.88,11.17250404]
[1735106969659,9.66050404,199.95,199.88,11.17250404]
[1735106973064,9.66050404,199.94,199.88,11.17250404]
[1735106973865,9.66050404,199.94,199.88,1.512]
[1735106978075,9.66050404,199.93,199.88,1.512]
[1735106981185,9.66050404,199.9,199.88,1.512]
[1735106982548,9.66050404,199.91,199.88,1.512]
[1735106982850,9.66050404,199.9,199.88,1.512]
[1735106984969,7.5023,199.94,199.84,128.5308]
[1735106984970,9.66050404,199.89,199.84,6.0308]
[1735106985150,9.66050404,199.88,199.84,6.0308]
[1735106987476,9.66050404,199.86,199.84,6.0308]
[1735106987655,9.66050404,199.85,199.84,6.0308]
[1735106990169,9.66050404,199.86,199.84,6.0308]
[1735106999960,9.66050404,199.85,199.84,6.0308]
[1735107000281,9.66050404,199.86,199.84,6.0308]
[1735107001795,0.5,199.94,199.84,138.19130404]
[1735107001970,9.66050404,199.94,199.88,9.66050404]
[1735107002363,9.66050404,199.94,199.89,2.34099962]
[1735107002582,9.66050404,199.95,199.89,2.34099962]
[1735107002893,9.66050404,199.96,199.9,6.634]
[1735107004084,9.66050404,199.95,199.9,6.634]
[1735107005687,0.5,199.99,199.9,6.634]
[1735107005886,0.5,200.01,199.91,0.75014897]
[1735107006094,9.66050404,199.98,199.91,10.41065301]
[1735107006587,18.49383785,200.02,199.92,132.16050404]
[1735107006795,9.66050404,200.01,199.94,11.25130404]
[1735107006971,9.66050404,200.01,199.95,0.74991876]
[1735107008685,9.66050404,200.0,199.95,0.74991876]
[1735107009512,9.66050404,199.98,199.94,1.5908]
[1735107009893,9.66050404,199.99,199.95,0.75003724]
[1735107011907,18.49383785,200.02,199.95,0.75003724]
[1735107012110,9.66050404,200.0,199.95,0.75003724]
[1735107012803,9.66050404,199.99,199.95,0.75003724]
[1735107016018,9.66050404,200.0,199.95,0.75003724]
[1735107016212,9.66050404,200.0,199.96,6.6177]
[1735107016805,9.66050404,200.01,199.96,6.6177]
[1735107018417,9.66050404,200.0,199.96,6.6177]
[1735107018922,9.66050404,200.13,200.02,142.5]
[1735107019096,0.5,200.15,200.05,9.66050404]
[1735107019299,9.66050404,200.12,200.06,0.74952664]
[1735107019719,9.66050404,200.1,200.06,0.74952664]
[1735107020025,8.66050404,200.1,200.06,0.74952664]
[1735107020196,9.66050404,200.09,200.04,0.74958348]
[1735107020405,9.66050404,200.08,200.04,0.74958348]
[1735107021407,9.66050404,200.08,200.05,0.74962224]
[1735107022219,9.66050404,200.08,200.03,0.74963438]
[1735107022534,9.66050404,200.09,200.03,0.74963438]
[1735107030559,9.66050404,200.07,200.03,0.74963438]
[1735107030717,9.66050404,200.05,200.02,0.7497037]
[1735107035631,9.66050404,200.03,200.01,8.1834]
[1735107035820,9.66050404,200.02,200.01,8.1834]
[1735107040821,9.66050404,200.02,199.96,8.0643]
[1735107041017,0.5,200.07,199.96,8.0643]
[1735107041018,9.66050404,199.97,199.96,8.0643]
[1735107041243,9.66050404,199.97,199.89,8.0643]
[1735107041447,9.66050404,199.94,199.9,0.75007537]
[1735107042430,9.66050404,199.92,199.89,8.0643]
[1735107042770,9.66050404,199.91,199.89,8.0643]
[1735107043054,9.66050404,199.9,199.89,8.0643]
[1735107045437,0.5,199.97,199.89,8.0643]
[1735107045643,9.66050404,199.93,199.89,8.0643]
[1735107046146,9.66050404,199.92,199.89,8.0643]
[1735107050656,9.66050404,199.91,199.89,8.0643]
[1735107050829,9.66050404,199.92,199.89,8.0643]
[1735107051142,9.66050404,199.93,199.89,8.0643]
[1735107053955,9.66050404,199.92,199.89,8.0643]
[1735107054155,9.66050404,199.93,199.89,8.0643]
[1735107054556,0.5,199.97,199.89,8.0643]
[1735107054557,9.66050404,199.92,199.89,8.0643]
[1735107054861,9.66050404,199.9,199.84,8.78661452]
[1735107059569,9.66050404,199.91,199.84,18.44711856]
[1735107063651,20.0,199.96,199.87,9.66050404]
[1735107063975,9.66050404,199.97,199.89,9.66050404]
[1735107064262,9.66050404,199.97,199.9,10.4105566]
[1735107065162,9.66050404,199.97,199.9,0.75005256]
[1735107065345,9.66050404,199.96,199.9,0.75005256]
[1735107066257,9.66050404,199.96,199.91,0.75009225]
[1735107066436,9.66050404,200.0,199.92,9.66050404]
[1735107066637,9.66050404,200.01,199.93,10.41044887]
[1735107067270,9.66050404,200.0,199.93,0.74994483]
[1735107069855,9.66050404,200.0,199.93,10.41044887]
[1735107072079,9.66050404,200.0,199.93,0.74994483]
[1735107072253,9.66050404,200.0,199.94,0.74996943]
[1735107073174,9.66050404,200.0,199.95,0.74993062]
[1735107074273,9.66050404,200.0,199.93,0.74993097]
[1735107075077,9.66050404,199.98,199.93,0.74993097]
[1735107075280,9.66050404,199.98,199.92,0.74998661]
[1735107077674,9.66050404,199.96,199.91,7.7593]
[1735107077854,9.66050404,199.95,199.91,7.7593]
[1735107078055,9.66050404,199.94,199.91,7.7593]
[1735107081889,0.5,200.03,199.92,0.75016173]
[1735107082061,9.66050404,199.99,199.92,10.41066577]